Workbook

Sheet Inventarverzeichnis
A2: Inventarverzeichnis / Stand 31.12.2025
A4: Nr. | B4: Datum der Beschaffung | C4: Anzahl | D4: Beschreibung des Gegenstandes | E4: Neuwert | F4: Ende der Abschrei-bung | G4: Lauf-zeit in Jahren | I4: Wert nach Ende der Abschrei-bung | J4: Monatlicher Abschrei-bungswert | K4: Heutiges Datum | L4: Lauf-zeit bisher | M4: Zeile löschen | N4: Zeitwert | O4: Standort oder Benutzer
A5: 1 | B5: 2022-01-01 | C5: 18 | D5: Stühle | E5: 1520 | G5: 8 | H5: =IF(E5>0,G5*12,"") -> 96 | I5: 1 | J5: =IF(E5>0,SLN(E5,I5,G5)/12,"") -> 15.82291667 | K5: =IF(E5>0,TODAY(),"") -> 2026-02-27 | L5: =IF(E5>0,DATEDIF(B5,K5,"m"),"") -> 49 | M5: =IF(E5>0,E5-(J5*L5),"") -> 744.6770833 | N5: =IF(M5>1,M5,1) -> 744.6770833 | O5: Gst
A6: 2 | B6: 2022-01-01 | C6: 1 | D6: Tisch | E6: 339.9 | G6: 8 | H6: =IF(E6>0,G6*12,"") -> 96 | I6: 1 | J6: =IF(E6>0,SLN(E6,I6,G6)/12,"") -> 3.530208333 | K6: =IF(E6>0,TODAY(),"") -> 2026-02-27 | L6: =IF(E6>0,DATEDIF(B6,K6,"m"),"") -> 49 | M6: =IF(E6>0,E6-(J6*L6),"") -> 166.9197917 | N6: =IF(M6>1,M6,1) -> 166.9197917 | O6: Gst
A7: 3 | B7: 2022-03-01 | C7: 1 | D7: TV-Wagen | E7: 76.99 | G7: 8 | H7: =IF(E7>0,G7*12,"") -> 96 | I7: 1 | J7: =IF(E7>0,SLN(E7,I7,G7)/12,"") -> 0.7915625 | K7: =IF(E7>0,TODAY(),"") -> 2026-02-27 | L7: =IF(E7>0,DATEDIF(B7,K7,"m"),"") -> 47 | M7: =IF(E7>0,E7-(J7*L7),"") -> 39.7865625 | N7: =IF(M7>1,M7,1) -> 39.7865625 | O7: Gst
A8: 4 | B8: 2023-06-01 | C8: 1 | D8: Alu-Gartengarnitur | E8: 279.95 | G8: 8 | H8: =IF(E8>0,G8*12,"") -> 96 | I8: 1 | J8: =IF(E8>0,SLN(E8,I8,G8)/12,"") -> 2.905729167 | K8: =IF(E8>0,TODAY(),"") -> 2026-02-27 | L8: =IF(E8>0,DATEDIF(B8,K8,"m"),"") -> 32 | M8: =IF(E8>0,E8-(J8*L8),"") -> 186.9666667 | N8: =IF(M8>1,M8,1) -> 186.9666667 | O8: Gst
A9: 5 | B9: 2023-08-01 | C9: 2 | D9: Monitor | E9: 235.98 | G9: 3 | H9: =IF(E9>0,G9*12,"") -> 36 | I9: 1 | J9: =IF(E9>0,SLN(E9,I9,G9)/12,"") -> 6.527222222 | K9: =IF(E9>0,TODAY(),"") -> 2026-02-27 | L9: =IF(E9>0,DATEDIF(B9,K9,"m"),"") -> 30 | M9: =IF(E9>0,E9-(J9*L9),"") -> 40.16333333 | N9: =IF(M9>1,M9,1) -> 40.16333333 | O9: Gst
A10: 6 | B10: 2023-11-01 | C10: 1 | D10: Standtheke | E10: 264.13 | G10: 8 | H10: =IF(E10>0,G10*12,"") -> 96 | I10: 1 | J10: =IF(E10>0,SLN(E10,I10,G10)/12,"") -> 2.7409375 | K10: =IF(E10>0,TODAY(),"") -> 2026-02-27 | L10: =IF(E10>0,DATEDIF(B10,K10,"m"),"") -> 27 | M10: =IF(E10>0,E10-(J10*L10),"") -> 190.1246875 | N10: =IF(M10>1,M10,1) -> 190.1246875 | O10: Jugend
A11: 7 | B11: 2024-02-01 | C11: 1 | D11: Computer | E11: 496 | G11: 3 | H11: =IF(E11>0,G11*12,"") -> 36 | I11: 1 | J11: =IF(E11>0,SLN(E11,I11,G11)/12,"") -> 13.75 | K11: =IF(E11>0,TODAY(),"") -> 2026-02-27 | L11: =IF(E11>0,DATEDIF(B11,K11,"m"),"") -> 24 | M11: =IF(E11>0,E11-(J11*L11),"") -> 166 | N11: =IF(M11>1,M11,1) -> 166 | O11: Stellv.
A12: 8 | B12: 2024-02-01 | C12: 1 | D12: JBL-Lautsprecher | E12: 429.99 | G12: 3 | H12: =IF(E12>0,G12*12,"") -> 36 | I12: 1 | J12: =IF(E12>0,SLN(E12,I12,G12)/12,"") -> 11.91638889 | K12: =IF(E12>0,TODAY(),"") -> 2026-02-27 | L12: =IF(E12>0,DATEDIF(B12,K12,"m"),"") -> 24 | M12: =IF(E12>0,E12-(J12*L12),"") -> 143.9966667 | N12: =IF(M12>1,M12,1) -> 143.9966667 | O12: Gst
A13: 9 | B13: 2025-02-01 | C13: 1 | D13: GEEKOM Mini-PC | E13: 829 | G13: 3 | H13: =IF(E13>0,G13*12,"") -> 36 | I13: 1 | J13: =IF(E13>0,SLN(E13,I13,G13)/12,"") -> 23 | K13: =IF(E13>0,TODAY(),"") -> 2026-02-27 | L13: =IF(E13>0,DATEDIF(B13,K13,"m"),"") -> 12 | M13: =IF(E13>0,E13-(J13*L13),"") -> 553 | N13: =IF(M13>1,M13,1) -> 553 | O13: Gst
A14: 10 | B14: 2025-02-01 | C14: 1 | D14: Computer-Kamera L22-2K | E14: 64.99 | G14: 3 | H14: =IF(E14>0,G14*12,"") -> 36 | I14: 1 | J14: =IF(E14>0,SLN(E14,I14,G14)/12,"") -> 1.7775 | K14: =IF(E14>0,TODAY(),"") -> 2026-02-27 | L14: =IF(E14>0,DATEDIF(B14,K14,"m"),"") -> 12 | M14: =IF(E14>0,E14-(J14*L14),"") -> 43.66 | N14: =IF(M14>1,M14,1) -> 43.66 | O14: Gst
A15: 11 | B15: 2025-02-01 | C15: 1 | D15: Esszimmertisch | E15: 93.9 | G15: 8 | H15: =IF(E15>0,G15*12,"") -> 96 | I15: 1 | J15: =IF(E15>0,SLN(E15,I15,G15)/12,"") -> 0.9677083333 | K15: =IF(E15>0,TODAY(),"") -> 2026-02-27 | L15: =IF(E15>0,DATEDIF(B15,K15,"m"),"") -> 12 | M15: =IF(E15>0,E15-(J15*L15),"") -> 82.2875 | N15: =IF(M15>1,M15,1) -> 82.2875 | O15: Gst
A16: 12 | B16: 2025-02-01 | C16: 2 | D16: HDMI- und USB-Kabel | E16: 79.94 | G16: 8 | H16: =IF(E16>0,G16*12,"") -> 96 | I16: 1 | J16: =IF(E16>0,SLN(E16,I16,G16)/12,"") -> 0.8222916667 | K16: =IF(E16>0,TODAY(),"") -> 2026-02-27 | L16: =IF(E16>0,DATEDIF(B16,K16,"m"),"") -> 12 | M16: =IF(E16>0,E16-(J16*L16),"") -> 70.0725 | N16: =IF(M16>1,M16,1) -> 70.0725 | O16: Gst
A17: 13 | B17: 2025-02-01 | C17: 2 | D17: Tisch-Einbau-Steckdose | E17: 132.97 | G17: 8 | H17: =IF(E17>0,G17*12,"") -> 96 | I17: 1 | J17: =IF(E17>0,SLN(E17,I17,G17)/12,"") -> 1.3746875 | K17: =IF(E17>0,TODAY(),"") -> 2026-02-27 | L17: =IF(E17>0,DATEDIF(B17,K17,"m"),"") -> 12 | M17: =IF(E17>0,E17-(J17*L17),"") -> 116.47375 | N17: =IF(M17>1,M17,1) -> 116.47375 | O17: Gst
A18: 14 | B18: 2025-02-01 | C18: 1 | D18: Schreibtisch | E18: 396.2 | G18: 8 | H18: =IF(E18>0,G18*12,"") -> 96 | I18: 1 | J18: =IF(E18>0,SLN(E18,I18,G18)/12,"") -> 4.116666667 | K18: =IF(E18>0,TODAY(),"") -> 2026-02-27 | L18: =IF(E18>0,DATEDIF(B18,K18,"m"),"") -> 12 | M18: =IF(E18>0,E18-(J18*L18),"") -> 346.8 | N18: =IF(M18>1,M18,1) -> 346.8 | O18: Gst
A19: 15 | B19: 2025-02-01 | C19: 2 | D19: Tischplatte | E19: 183.26 | G19: 8 | H19: =IF(E19>0,G19*12,"") -> 96 | I19: 1 | J19: =IF(E19>0,SLN(E19,I19,G19)/12,"") -> 1.898541667 | K19: =IF(E19>0,TODAY(),"") -> 2026-02-27 | L19: =IF(E19>0,DATEDIF(B19,K19,"m"),"") -> 12 | M19: =IF(E19>0,E19-(J19*L19),"") -> 160.4775 | N19: =IF(M19>1,M19,1) -> 160.4775 | O19: Gst
A20: 16 | B20: 2025-03-01 | C20: 4 | D20: Stühle | E20: 371.81 | G20: 8 | H20: =IF(E20>0,G20*12,"") -> 96 | I20: 1 | J20: =IF(E20>0,SLN(E20,I20,G20)/12,"") -> 3.862604167 | K20: =IF(E20>0,TODAY(),"") -> 2026-02-27 | L20: =IF(E20>0,DATEDIF(B20,K20,"m"),"") -> 11 | M20: =IF(E20>0,E20-(J20*L20),"") -> 329.3213542 | N20: =IF(M20>1,M20,1) -> 329.3213542 | O20: Gst
A21: 17 | B21: 2025-04-01 | C21: 1 | D21: Notebook | E21: 333.99 | G21: 3 | H21: =IF(E21>0,G21*12,"") -> 36 | I21: 1 | J21: =IF(E21>0,SLN(E21,I21,G21)/12,"") -> 9.249722222 | K21: =IF(E21>0,TODAY(),"") -> 2026-02-27 | L21: =IF(E21>0,DATEDIF(B21,K21,"m"),"") -> 10 | M21: =IF(E21>0,E21-(J21*L21),"") -> 241.4927778 | N21: =IF(M21>1,M21,1) -> 241.4927778 | O21: Stellv.
A22: 18 | B22: 2025-04-01 | C22: 9 | D22: Stühle | E22: 1520.82 | G22: 8 | H22: =IF(E22>0,G22*12,"") -> 96 | I22: 1 | J22: =IF(E22>0,SLN(E22,I22,G22)/12,"") -> 15.83145833 | K22: =IF(E22>0,TODAY(),"") -> 2026-02-27 | L22: =IF(E22>0,DATEDIF(B22,K22,"m"),"") -> 10 | M22: =IF(E22>0,E22-(J22*L22),"") -> 1362.505417 | N22: =IF(M22>1,M22,1) -> 1362.505417 | O22: Gst
A23: 19 | B23: 2025-04-01 | C23: 2 | D23: Tischplattenverbinder | E23: 62.4 | G23: 8 | H23: =IF(E23>0,G23*12,"") -> 96 | I23: 1 | J23: =IF(E23>0,SLN(E23,I23,G23)/12,"") -> 0.6395833333 | K23: =IF(E23>0,TODAY(),"") -> 2026-02-27 | L23: =IF(E23>0,DATEDIF(B23,K23,"m"),"") -> 10 | M23: =IF(E23>0,E23-(J23*L23),"") -> 56.00416667 | N23: =IF(M23>1,M23,1) -> 56.00416667 | O23: Gst
A24: 20 | B24: 2025-05-01 | C24: 2 | D24: Bodenmatten | E24: 87.96 | G24: 8 | H24: =IF(E24>0,G24*12,"") -> 96 | I24: 1 | J24: =IF(E24>0,SLN(E24,I24,G24)/12,"") -> 0.9058333333 | K24: =IF(E24>0,TODAY(),"") -> 2026-02-27 | L24: =IF(E24>0,DATEDIF(B24,K24,"m"),"") -> 9 | M24: =IF(E24>0,E24-(J24*L24),"") -> 79.8075 | N24: =IF(M24>1,M24,1) -> 79.8075 | O24: Gst
A25: 21 | B25: 2025-06-01 | C25: 1 | D25: Air Cooler | E25: 50 | G25: 3 | H25: =IF(E25>0,G25*12,"") -> 36 | I25: 1 | J25: =IF(E25>0,SLN(E25,I25,G25)/12,"") -> 1.361111111 | K25: =IF(E25>0,TODAY(),"") -> 2026-02-27 | L25: =IF(E25>0,DATEDIF(B25,K25,"m"),"") -> 8 | M25: =IF(E25>0,E25-(J25*L25),"") -> 39.11111111 | N25: =IF(M25>1,M25,1) -> 39.11111111 | O25: Gst
A26: 22 | B26: 2025-08-01 | C26: 1 | D26: Würstchenwärmer | E26: 312.95 | G26: 3 | H26: =IF(E26>0,G26*12,"") -> 36 | I26: 1 | J26: =IF(E26>0,SLN(E26,I26,G26)/12,"") -> 8.665277778 | K26: =IF(E26>0,TODAY(),"") -> 2026-02-27 | L26: =IF(E26>0,DATEDIF(B26,K26,"m"),"") -> 6 | M26: =IF(E26>0,E26-(J26*L26),"") -> 260.9583333 | N26: =IF(M26>1,M26,1) -> 260.9583333 | O26: Gst
A27: 23 | B27: 2025-12-01 | C27: 2 | D27: Bürosessel | E27: 369.98 | G27: 8 | H27: =IF(E27>0,G27*12,"") -> 96 | I27: 1 | J27: =IF(E27>0,SLN(E27,I27,G27)/12,"") -> 3.843541667 | K27: =IF(E27>0,TODAY(),"") -> 2026-02-27 | L27: =IF(E27>0,DATEDIF(B27,K27,"m"),"") -> 2 | M27: =IF(E27>0,E27-(J27*L27),"") -> 362.2929167 | N27: =IF(M27>1,M27,1) -> 362.2929167 | O27: Gst
A28: 24 | H28: =IF(E28>0,G28*12,"") ->  | I28: 1 | J28: =IF(E28>0,SLN(E28,I28,G28)/12,"") ->  | K28: =IF(E28>0,TODAY(),"") ->  | L28: =IF(E28>0,DATEDIF(B28,K28,"m"),"") ->  | M28: =IF(E28>0,E28-(J28*L28),"") ->  | N28: =IF(M28>1,M28,1) -> 
A29: 25 | H29: =IF(E29>0,G29*12,"") ->  | I29: 1 | J29: =IF(E29>0,SLN(E29,I29,G29)/12,"") ->  | K29: =IF(E29>0,TODAY(),"") ->  | L29: =IF(E29>0,DATEDIF(B29,K29,"m"),"") ->  | M29: =IF(E29>0,E29-(J29*L29),"") ->  | N29: =IF(M29>1,M29,1) -> 
A30: 26 | H30: =IF(E30>0,G30*12,"") ->  | I30: 1 | J30: =IF(E30>0,SLN(E30,I30,G30)/12,"") ->  | K30: =IF(E30>0,TODAY(),"") ->  | L30: =IF(E30>0,DATEDIF(B30,K30,"m"),"") ->  | M30: =IF(E30>0,E30-(J30*L30),"") ->  | N30: =IF(M30>1,M30,1) -> 
A31: 27 | H31: =IF(E31>0,G31*12,"") ->  | I31: 1 | J31: =IF(E31>0,SLN(E31,I31,G31)/12,"") ->  | K31: =IF(E31>0,TODAY(),"") ->  | L31: =IF(E31>0,DATEDIF(B31,K31,"m"),"") ->  | M31: =IF(E31>0,E31-(J31*L31),"") ->  | N31: =IF(M31>1,M31,1) -> 
A32: 28 | H32: =IF(E32>0,G32*12,"") ->  | I32: 1 | J32: =IF(E32>0,SLN(E32,I32,G32)/12,"") ->  | K32: =IF(E32>0,TODAY(),"") ->  | L32: =IF(E32>0,DATEDIF(B32,K32,"m"),"") ->  | M32: =IF(E32>0,E32-(J32*L32),"") ->  | N32: =IF(M32>1,M32,1) -> 
A33: 29 | H33: =IF(E33>0,G33*12,"") ->  | I33: 1 | J33: =IF(E33>0,SLN(E33,I33,G33)/12,"") ->  | K33: =IF(E33>0,TODAY(),"") ->  | L33: =IF(E33>0,DATEDIF(B33,K33,"m"),"") ->  | M33: =IF(E33>0,E33-(J33*L33),"") ->  | N33: =IF(M33>1,M33,1) -> 
A34: 30 | I34: 1
A35: 31 | I35: 1
A36: 32 | I36: 1
A37: 33 | H37: =IF(E37>0,G37*12,"") ->  | I37: 1 | J37: =IF(E37>0,SLN(E37,I37,G37)/12,"") ->  | K37: =IF(E37>0,TODAY(),"") ->  | L37: =IF(E37>0,DATEDIF(B37,K37,"m"),"") ->  | M37: =IF(E37>0,E37-(J37*L37),"") ->  | N37: =IF(M37>1,M37,1) -> 
A38: 34 | I38: 1
A39: 35 | I39: 1
A40: 36 | I40: 1
A41: 37 | I41: 1
A42: 38 | I42: 1
A43: 39 | I43: 1
A44: 40 | I44: 1
A45: 41 | I45: 1
A46: 42 | I46: 1
A47: 43 | I47: 1
A48: 44 | I48: 1
A49: 45 | I49: 1
A50: 46 | I50: 1
A51: 47 | I51: 1
A52: 48 | I52: 1
A53: 49 | I53: 1
A54: 50 | I54: 1
A55: 51 | I55: 1
A56: 52 | I56: 1
A57: 53 | I57: 1
A58: 54 | I58: 1
A59: 55 | I59: 1
A60: 56 | I60: 1
A61: 57 | I61: 1
A62: 58 | I62: 1
A63: 59 | I63: 1
A64: 60 | I64: 1
B65: Momentaner Zeitwert des Sachwertvermögens: | N65: =SUM(N5:N64) -> 5782.899618
